{"text_format":"1","workbook":"xlsx","n_sheets":1,"sheets":["Blad3"],"not_rendered":{"charts":0,"images":24,"macros":1,"external_links":0,"defined_names":1,"comments":1,"pivot_tables":0},"unopened":[],"bounds":{"document_bytes":16777216,"sheet_cells":100000,"rows_first":2000,"rows_last":500,"rows_between":2000,"halvings":0,"cell_chars":16384,"cell_head_chars":4096},"cells_cut":0,"cells_raw":0,"read":"whole","date_system":"1900"}

{"sheet":"Blad3","index":0,"n_rows":1044,"n_cols":36,"rows_kept":1044,"cut":false,"hidden":false,"merged":[[16,8,16,17],[16,19,16,28],[8,20,8,23],[7,1,7,2],[8,1,8,2],[9,1,9,2],[10,1,10,2],[8,16,8,17],[9,16,9,17],[10,16,10,17],[11,1,11,2],[12,1,12,2],[10,20,10,23],[12,9,12,16],[6,1,6,2],[1,1,1,2],[2,1,2,2],[3,1,3,2],[4,1,4,2],[5,1,5,2]]}
[null,null,null,null,"naam van je school",null,"GRAAD 1"]
[null,"LPD1",null,"extra",null,null,"GLI versie 2 -> 1ste leerjaar",null,null,"1.1",{"$f":"COUNTIF($E$18:$E$1002,AJ18)","v":0},"4.1",{"$f":"COUNTIF($E$18:$E$1002,AJ26)","v":0},"5.1",{"$f":"COUNTIF($E$18:$E$1002,AJ32)","v":0},"6.1",{"$f":"COUNTIF($E$18:$E$1002,AJ37)","v":0},"7.1",{"$f":"COUNTIF($E$18:$E$1002,AJ42)","v":0},"8.1",{"$f":"COUNTIF($E$18:$E$1002,AJ45)","v":0},"9.1",{"$f":"COUNTIF($E$18:$E$1002,AJ47)","v":0},"10.1",{"$f":"COUNTIF($E$18:$E$1002,AJ50)","v":0},"12.1",{"$f":"COUNTIF($E$18:$E$1002,AJ54)","v":0}]
[null,"LPD2",null,"extra",{"$f":"AF18","v":"Aardrijkskunde"},{"$f":"COUNTIF($G$18:$G$1002,AF18)","v":0},{"$f":"AF28","v":"Muziek (2)"},{"$f":"COUNTIF($G$18:$G$1002,AF28)","v":1},null,"1.2",{"$f":"COUNTIF($E$18:$E$1002,AJ19)","v":0},"4.2",{"$f":"COUNTIF($E$18:$E$1002,AJ27)","v":0},"5.2",{"$f":"COUNTIF($E$18:$E$1002,AJ33)","v":0},"6.2",{"$f":"COUNTIF($E$18:$E$1002,AJ38)","v":0},"7.2",{"$f":"COUNTIF($E$18:$E$1002,AJ43)","v":0},"8.2",{"$f":"COUNTIF($E$18:$E$1002,AJ46)","v":0},"9.2",{"$f":"COUNTIF($E$18:$E$1002,AJ48)","v":0},"10.2",{"$f":"COUNTIF($E$18:$E$1002,AJ51)","v":0},"12.2",{"$f":"COUNTIF($E$18:$E$1002,AJ55)","v":0}]
[null,"LPD3",null,"extra",{"$f":"AF19","v":"Beeld (1)"},{"$f":"COUNTIF($G$18:$G$1002,AF19)","v":0},{"$f":"AF29","v":"Natuuretenschappen praktijk"},{"$f":"COUNTIF($G$18:$G$1002,AF29)","v":0},null,"1.3",1,"4.3",0,"5.3",0,"6.3",0,"7.3",0,null,null,"9.3",0,"10.3",0,"12.3",0,"VERBERGEN"]
[null,"LPD4",null,"extra","Economie & organisatie (2)",1,"Natuurwetenschappen",1,null,"1.4",1,"4.4",1,"5.4",0,"6.4",0,null,null,null,null,null,null,null,null,"12.4",0,"BEVEILIGD"]
[null,"LPD5",null,"extra","Engels",0,"Nederlands",1,null,null,null,"4.5",0,"5.5",0,"6.5",0,null,null,null,null,null,null,"11.1",{"$f":"COUNTIF($E$18:$E$1002,AJ53)","v":0},"12.5",0,"JouwWeb"]
[null,"LPD6",null,"extra","Expressie (1)",0,"Nederlands, Frans, Wiskunde (1)",0,null,"2.1",{"$f":"COUNTIF($E$18:$E$1002,AJ22)","v":1},"4.6",0]
[null,"LPD7",null,"extra","Frans",0,"Techniek",1]
[null,"LPD8",null,"extra","Fysica (2)",0,"Wiskunde",0,null,"3.1",{"$f":"COUNTIF($E$18:$E$1002,AJ23)","v":1},null,null,null,null,null,"LEERPLAN",null,null,null,{"$f":"TODAY()","v":"2022-11-21"}]
[null,"LPD9",null,"extra","Geschiedenis",0,0,0,null,"3.2",{"$f":"COUNTIF($E$18:$E$1002,AJ24)","v":0},null,null,null,null,null,"VERSIE 2"]
[null,"LPD10",null,"extra","ICT",0,0,0,null,"3.3",0,null,null,null,null,null,"GRAAD ->",null,null,null,"Ondersteuning nodig?"]
[null,"LPD11",null,"extra","Lichamelijke opvoeding",0,0,0]
[null,"LPD12",null,"extra",null,null,null,null,null,"DEMO VERSIE oefenzone rij 18 t.e.m. rij 29"]
[]
[]
[null,null,null,null,"1 en 2 - 1 A +2 A - 1ste jaar -versie 2 ",null,null,null,"sep","okt","nov","dec","jan","feb","mrt","apr","mei","jun",null,"sep","okt","nov","dec","jan","feb","mrt","apr","mei","jun"]
[null,null,null,null,"doelen",null,"vakken",null,"schooljaar 2022-2023         leerjaar 1 van de 1ste graad",null,null,null,null,null,null,null,null,null,null,"schooljaar 2023-2024         leerjaar 2 van de 1ste graad"]
[{"$f":"COUNTIF(E18:E40,\"LPD 1.1 Bit als basiseenheid van data\")","v":0},null,null,null,"LPD 1.3 Eenheden van informatie: bit, byte, grootordes",0,"Economie & organisatie (2)",0,null,1,null,null,null,null,null,null,null,null,null,null,null,null,null,null,null,1,2,3,null,null,1,"Aardrijkskunde",null,1,"1.1","LPD 1.1 Informatieverwerkend systeem: invoer, verwerking, uitvoer"]
[null,null,null,null,"LPD 1.4 Besturingssystemen en toepassingsprogramma's: verschil",0,"Muziek (2)",0,null,1,2,2,null,3,null,null,null,null,null,null,null,1,null,null,2,3,null,null,null,null,2,"Beeld (1)",null,2,"1.2","LPD 1.2 Hardware en software: verschil"]
[null,null,null,null,"LPD 2.1 Begrijpen hoe communicatie tussen informatieverwerkende systemen verloopt - BG",0,"Natuurwetenschappen",0,null,null,null,null,null,null,null,1,1,null,null,null,2,null,null,3,null,null,null,null,null,null,3,"Economie & organisatie (2)",null,3,"1.3","LPD 1.3 Eenheden van informatie: bit, byte, grootordes"]
[null,null,null,null,"LPD 3.1 Computationeel denken: decompositie, patroonherkenning, abstractie, algoritmen",0,"Nederlands",0,1,2,3,null,null,null,null,null,null,null,null,null,null,null,null,null,null,null,null,null,null,null,4,"Engels",null,4,"1.4","LPD 1.4 Besturingssystemen en toepassingsprogramma's: verschil"]
[null,null,null,null,"LPD 4.4 Zoeken in mappen",0,"Techniek",0,null,null,null,null,null,null,null,null,null,null,null,null,null,null,null,null,null,null,null,null,null,null,5,"Expressie (1)",null,5,"2.1","LPD 2.1 Begrijpen hoe communicatie tussen informatieverwerkende systemen verloopt - BG"]
[null,null,null,null,null,0,null,0,null,null,null,null,null,null,null,null,null,null,null,null,null,null,null,null,null,null,null,null,null,null,6,"Frans",null,6,"3.1","LPD 3.1 Computationeel denken: decompositie, patroonherkenning, abstractie, algoritmen"]
[null,null,null,null,null,0,null,0,null,null,null,null,null,null,null,null,null,null,null,null,null,null,null,null,null,null,null,null,null,null,7,"Fysica (2)",null,7,"3.2","LPD 3.2 Controlestructuren: opeenvolging, keuze, herhaling"]
[null,null,null,null,null,0,null,0,null,null,null,null,null,null,null,null,null,null,null,null,null,null,null,null,null,null,null,null,null,null,8,"Geschiedenis",null,8,"3.3","LPD 3.3 Debuggen"]
[null,null,null,null,null,0,null,0,null,null,null,null,null,null,null,null,null,null,null,null,null,null,null,null,null,null,null,null,null,null,9,"ICT",null,9,"4.1","LPD 4.1 Navigeren in mappen en bestandenlijst"]
[null,null,null,null,null,0,null,0,null,null,null,null,null,null,null,null,null,null,null,null,null,null,null,null,null,null,null,null,null,null,10,"Lichamelijke opvoeding",null,10,"4.2","LPD 4.2 Mappen aanmaken"]
[null,null,null,null,null,0,null,0,null,null,null,null,null,null,null,null,null,null,null,null,null,null,null,null,null,null,null,null,null,null,11,"Muziek (2)",null,11,"4.3","LPD 4.3 Mappen en bestanden verplaatsen, kopiëren, hernoemen en verwijderen"]
[null,null,null,null,null,0,null,0,null,null,null,null,null,null,null,null,null,null,null,null,null,null,null,null,null,null,null,null,null,null,12,"Natuuretenschappen praktijk",null,12,"4.4","LPD 4.4 Zoeken in mappen"]
[null,null,null,null,null,0,null,0,null,null,null,null,null,null,null,null,null,null,null,null,null,null,null,null,null,null,null,null,null,null,13,"Natuurwetenschappen",null,13,"4.5","LPD 4.5 Sorteren van bestanden in een map"]
[null,null,null,null,null,0,null,0,null,null,null,null,null,null,null,null,null,null,null,null,null,null,null,null,null,null,null,null,null,null,14,"Nederlands",null,14,"4.6","LPD 4.6 Weergave van bestanden in mappen"]
[null,null,null,null,null,0,null,0,null,null,null,null,null,null,null,null,null,null,null,null,null,null,null,null,null,null,null,null,null,null,15,"Nederlands, Frans, Wiskunde (1)",null,15,"5.1","LPD 5.1 Navigatiemiddelen in toepassingen"]
[null,null,null,null,null,0,null,0,null,null,null,null,null,null,null,null,null,null,null,null,null,null,null,null,null,null,null,null,null,null,16,"Techniek",null,16,"5.2","LPD 5.2 Hulpmiddelen van toepassingen"]
[null,null,null,null,null,0,null,0,null,null,null,null,null,null,null,null,null,null,null,null,null,null,null,null,null,null,null,null,null,null,17,"Wiskunde",null,17,"5.3","LPD 5.3 Besturingselementen"]
[null,null,null,null,null,0,null,0,null,null,null,null,null,null,null,null,null,null,null,null,null,null,null,null,null,null,null,null,null,null,18,null,null,18,"5.4","LPD 5.4 Zoeken"]
[null,null,null,null,null,0,null,0,null,null,null,null,null,null,null,null,null,null,null,null,null,null,null,null,null,null,null,null,null,null,19,null,null,19,"5.5","LPD 5.5 Afdrukken"]
[null,null,null,null,null,0,null,0,null,null,null,null,null,null,null,null,null,null,null,null,null,null,null,null,null,null,null,null,null,null,20,null,null,20,"6.1","LPD 6.1 Structuurelementen tekst : invoegen, selecteren"]
[null,null,null,null,null,0,null,0,null,null,null,null,null,null,null,null,null,null,null,null,null,null,null,null,null,null,null,null,null,null,null,null,null,21,"6.2","LPD 6.2 Stijlen: gebruiken"]
[null,null,null,null,null,0,null,0,null,null,null,null,null,null,null,null,null,null,null,null,null,null,null,null,null,null,null,null,null,null,null,null,null,22,"6.3","LPD 6.3 Tekenopmaak, alineaopmaak, paginaopmaak"]
[null,null,null,null,null,0,null,0,null,null,null,null,null,null,null,null,null,null,null,null,null,null,null,null,null,null,null,null,null,null,null,null,null,23,"6.4","LPD 6.4 Objecten : invoegen, selecteren, positioneren, grootte"]
[null,null,null,null,null,0,null,0,null,null,null,null,null,null,null,null,null,null,null,null,null,null,null,null,null,null,null,null,null,null,null,null,null,24,"6.5","LPD 6.5 Spellingcontrole"]
[null,null,null,null,null,0,null,0,null,null,null,null,null,null,null,null,null,null,null,null,null,null,null,null,null,null,null,null,null,null,null,null,null,25,"7.1","LPD 7.1 Indeling afgestemd op inhoud"]
[null,null,null,null,null,0,null,0,null,null,null,null,null,null,null,null,null,null,null,null,null,null,null,null,null,null,null,null,null,null,null,null,null,26,"7.2","LPD 7.2 Opmaak: ingebouwde opmaak gebruiken, aanpassen"]
[null,null,null,null,null,0,null,0,null,null,null,null,null,null,null,null,null,null,null,null,null,null,null,null,null,null,null,null,null,null,null,null,null,27,"7.3","LPD 7.3 Multimedia: integreren"]
[null,null,null,null,null,0,null,0,null,null,null,null,null,null,null,null,null,null,null,null,null,null,null,null,null,null,null,null,null,null,null,null,null,28,"8.1","LPD 8.1 Afbeelding/foto: bestandsgrootte, resolutie, bijsnijden, kleur aanpassen"]
[null,null,null,null,null,0,null,0,null,null,null,null,null,null,null,null,null,null,null,null,null,null,null,null,null,null,null,null,null,null,null,null,null,29,"8.2","LPD 8.2 Video: aanpassen, stop motion"]
[null,null,null,null,null,0,null,0,null,null,null,null,null,null,null,null,null,null,null,null,null,null,null,null,null,null,null,null,null,null,null,null,null,30,"9.1","LPD 9.1 Delen van digitale media"]
[null,null,null,null,null,0,null,0,null,null,null,null,null,null,null,null,null,null,null,null,null,null,null,null,null,null,null,null,null,null,null,null,null,31,"9.2","LPD 9.2 Veilig in online gedeelde bestanden samenwerken"]
[null,null,null,null,null,0,null,0,null,null,null,null,null,null,null,null,null,null,null,null,null,null,null,null,null,null,null,null,null,null,null,null,null,32,"9.3","LPD 9.3 Veilig in online gedeelde mappen samenwerken"]
[null,null,null,null,null,0,null,0,null,null,null,null,null,null,null,null,null,null,null,null,null,null,null,null,null,null,null,null,null,null,null,null,null,33,"10.1","LPD 10.1 Taakgericht volgens de nettiquette communiceren via e-mail "]
[null,null,null,null,null,0,null,0,null,null,null,null,null,null,null,null,null,null,null,null,null,null,null,null,null,null,null,null,null,null,null,null,null,34,"10.2","LPD 10.2 Taakgericht volgens de nettiquette communiceren via berichten"]
[null,null,null,null,null,0,null,0,null,null,null,null,null,null,null,null,null,null,null,null,null,null,null,null,null,null,null,null,null,null,null,null,null,34,"10.3","LPD 10.3 Taakgericht volgens de nettiquette participeren aan initiatieven"]
[null,null,null,null,null,0,null,0,null,null,null,null,null,null,null,null,null,null,null,null,null,null,null,null,null,null,null,null,null,null,null,null,null,36,"11.1","LPD 11.1 URL, adresbalk, navigatieknoppen, geschiedenis"]
[null,null,null,null,null,0,null,0,null,null,null,null,null,null,null,null,null,null,null,null,null,null,null,null,null,null,null,null,null,null,null,null,null,37,"12.1","LPD 12.1 Structuurelementen: selecteren, opmaken"]
[null,null,null,null,null,0,null,0,null,null,null,null,null,null,null,null,null,null,null,null,null,null,null,null,null,null,null,null,null,null,null,null,null,38,"12.2","LPD 12.2 Gegevens: type"]
[null,null,null,null,null,0,null,0,null,null,null,null,null,null,null,null,null,null,null,null,null,null,null,null,null,null,null,null,null,null,null,null,null,39,"12.3","LPD 12.3 Formules: invoeren, kopiëren"]
[null,null,null,null,null,0,null,0,null,null,null,null,null,null,null,null,null,null,null,null,null,null,null,null,null,null,null,null,null,null,null,null,null,40,"12.4","LPD 12.4 Functies: som, gemiddelde, min, max"]
[null,null,null,null,null,0,null,0,null,null,null,null,null,null,null,null,null,null,null,null,null,null,null,null,null,null,null,null,null,null,null,null,null,41,"12.5","LPD 12.5 Grafieken: grafiektype, maken, opmaken"]
[null,null,null,null,null,0,null,0]
[null,null,null,null,null,0,null,0]
[null,null,null,null,null,0,null,0]
[null,null,null,null,null,0,null,0]
[null,null,null,null,null,0,null,0]
[null,null,null,null,null,0,null,0]
[null,null,null,null,null,0,null,0]
[null,null,null,null,null,0,null,0]
[null,null,null,null,null,0,null,0]
[null,null,null,null,null,0,null,0]
[null,null,null,null,null,0,null,0]
[null,null,null,null,null,0,null,0]
[null,null,null,null,null,0,null,0]
[null,null,null,null,null,0,null,0]
[null,null,null,null,null,0,null,0]
[null,null,null,null,null,0,null,0]
[null,null,null,null,null,0,null,0]
[null,null,null,null,null,0,null,0]
[null,null,null,null,null,0,null,0]
[null,null,null,null,null,0,null,0]
[null,null,null,null,null,0,null,0]
[null,null,null,null,null,0,null,0]
[null,null,null,null,null,0,null,0]
[null,null,null,null,null,0,null,0]
[null,null,null,null,null,0,null,0]
[null,null,null,null,null,0,null,0]
[null,null,null,null,null,0,null,0]
[null,null,null,null,null,0,null,0]
[null,null,null,null,null,0,null,0]
[null,null,null,null,null,0,null,0]
[null,null,null,null,null,0,null,0]
[null,null,null,null,null,0,null,0]
[null,null,null,null,null,0,null,0]
[null,null,null,null,null,0,null,0]
[null,null,null,null,null,0,null,0]
[null,null,null,null,null,0,null,0]
[null,null,null,null,null,0,null,0]
[null,null,null,null,null,0,null,0]
[null,null,null,null,null,0,null,0]
[null,null,null,null,null,0,null,0]
[null,null,null,null,null,0,null,0]
[null,null,null,null,null,0,null,0]
[null,null,null,null,null,0,null,0]
[null,null,null,null,null,0,null,0]
[null,null,null,null,null,0,null,0]
[null,null,null,null,null,0,null,0]
[null,null,null,null,null,0,null,0]
[null,null,null,null,null,0,null,0]
[null,null,null,null,null,0,null,0]
[null,null,null,null,null,0,null,0]
[null,null,null,null,null,0,null,0]
[null,null,null,null,null,0,null,0]
[null,null,null,null,null,0,null,0]
[null,null,null,null,null,0,null,0]
[null,null,null,null,null,0,null,0]
[null,null,null,null,null,0,null,0]
[null,null,null,null,null,0,null,0]
[null,null,null,null,null,0,null,0]
[null,null,null,null,null,0,null,0]
[null,null,null,null,null,0,null,0]
[null,null,null,null,null,0,null,0]
[null,null,null,null,null,0,null,0]
[null,null,null,null,null,0,null,0]
[null,null,null,null,null,0,null,0]
[null,null,null,null,null,0,null,0]
[null,null,null,null,null,0,null,0]
[null,null,null,null,null,0,null,0]
[null,null,null,null,null,0,null,0]
[null,null,null,null,null,0,null,0]
[null,null,null,null,null,0,null,0]
[null,null,null,null,null,0,null,0]
[null,null,null,null,null,0,null,0]
[null,null,null,null,null,0,null,0]
[null,null,null,null,null,0,null,0]
[null,null,null,null,null,0,null,0]
[null,null,null,null,null,0,null,0]
[null,null,null,null,null,0,null,0]
[null,null,null,null,null,0,null,0]
[null,null,null,null,null,0,null,0]
[null,null,null,null,null,0,null,0]
[null,null,null,null,null,0,null,0]
[null,null,null,null,null,0,null,0]
[null,null,null,null,null,0,null,0]
[null,null,null,null,null,0,null,0]
[null,null,null,null,null,0,null,0]
[null,null,null,null,null,0,null,0]
[null,null,null,null,null,0,null,0]
[null,null,null,null,null,0,null,0]
[null,null,null,null,null,0,null,0]
[null,null,null,null,null,0,null,0]
[null,null,null,null,null,0,null,0]
[null,null,null,null,null,0,null,0]
[{"$f":"COUNTIF(E151:E173,\"LPD 1.1 Bit als basiseenheid van data\")","v":0},null,null,null,null,0,null,0]
[null,null,null,null,null,0,null,0]
[null,null,null,null,null,0,null,0]
[null,null,null,null,null,0,null,0]
[null,null,null,null,null,0,null,0]
[null,null,null,null,null,0,null,0]
[null,null,null,null,null,0,null,0]
[null,null,null,null,null,0,null,0]
[null,null,null,null,null,0,null,0]
[null,null,null,null,null,0,null,0]
[null,null,null,null,null,0,null,0]
[null,null,null,null,null,0,null,0]
[null,null,null,null,null,0,null,0]
[null,null,null,null,null,0,null,0]
[null,null,null,null,null,0,null,0]
[null,null,null,null,null,0,null,0]
[null,null,null,null,null,0,null,0]
[null,null,null,null,null,0,null,0]
[null,null,null,null,null,0,null,0]
[null,null,null,null,null,0,null,0]
[null,null,null,null,null,0,null,0]
[null,null,null,null,null,0,null,0]
[null,null,null,null,null,0,null,0]
[null,null,null,null,null,0,null,0]
[null,null,null,null,null,0,null,0]
[null,null,null,null,null,0,null,0]
[null,null,null,null,null,0,null,0]
[null,null,null,null,null,0,null,0]
[null,null,null,null,null,0,null,0]
[null,null,null,null,null,0,null,0]
[null,null,null,null,null,0,null,0]
[null,null,null,null,null,0,null,0]
[null,null,null,null,null,0,null,0]
[null,null,null,null,null,0,null,0]
[null,null,null,null,null,0,null,0]
[null,null,null,null,null,0,null,0]
[null,null,null,null,null,0,null,0]
[null,null,null,null,null,0,null,0]
[null,null,null,null,null,0,null,0]
[null,null,null,null,null,0,null,0]
[null,null,null,null,null,0,null,0]
[null,null,null,null,null,0,null,0]
[null,null,null,null,null,0,null,0]
[null,null,null,null,null,0,null,0]
[null,null,null,null,null,0,null,0]
[null,null,null,null,null,0,null,0]
[null,null,null,null,null,0,null,0]
[null,null,null,null,null,0,null,0]
[null,null,null,null,null,0,null,0]
[null,null,null,null,null,0,null,0]
[null,null,null,null,null,0,null,0]
[null,null,null,null,null,0,null,0]
[null,null,null,null,null,0,null,0]
[null,null,null,null,null,0,null,0]
[null,null,null,null,null,0,null,0]
[null,null,null,null,null,0,null,0]
[null,null,null,null,null,0,null,0]
[null,null,null,null,null,0,null,0]
[null,null,null,null,null,0,null,0]
[null,null,null,null,null,0,null,0]
[null,null,null,null,null,0,null,0]
[null,null,null,null,null,0,null,0]
[null,null,null,null,null,0,null,0]
[null,null,null,null,null,0,null,0]
[null,null,null,null,null,0,null,0]
[null,null,null,null,null,0,null,0]
[null,null,null,null,null,0,null,0]
[null,null,null,null,null,0,null,0]
[null,null,null,null,null,0,null,0]
[null,null,null,null,null,0,null,0]
[null,null,null,null,null,0,null,0]
[null,null,null,null,null,0,null,0]
[null,null,null,null,null,0,null,0]
[null,null,null,null,null,0,null,0]
[null,null,null,null,null,0,null,0]
[null,null,null,null,null,0,null,0]
[null,null,null,null,null,0,null,0]
[null,null,null,null,null,0,null,0]
[null,null,null,null,null,0,null,0]
[null,null,null,null,null,0,null,0]
[null,null,null,null,null,0,null,0]
[null,null,null,null,null,0,null,0]
[null,null,null,null,null,0,null,0]
[null,null,null,null,null,0,null,0]
[null,null,null,null,null,0,null,0]
[null,null,null,null,null,0,null,0]
[null,null,null,null,null,0,null,0]
[null,null,null,null,null,0,null,0]
[null,null,null,null,null,0,null,0]
[null,null,null,null,null,0,null,0]
[null,null,null,null,null,0,null,0]
[null,null,null,null,null,0,null,0]
[null,null,null,null,null,0,null,0]
[null,null,null,null,null,0,null,0]
[null,null,null,null,null,0,null,0]
[null,null,null,null,null,0,null,0]
[null,null,null,null,null,0,null,0]
[null,null,null,null,null,0,null,0]
[null,null,null,null,null,0,null,0]
[null,null,null,null,null,0,null,0]
[null,null,null,null,null,0,null,0]
[null,null,null,null,null,0,null,0]
[null,null,null,null,null,0,null,0]
[null,null,null,null,null,0,null,0]
[null,null,null,null,null,0,null,0]
[null,null,null,null,null,0,null,0]
[null,null,null,null,null,0,null,0]
[null,null,null,null,null,0,null,0]
[null,null,null,null,null,0,null,0]
[null,null,null,null,null,0,null,0]
[null,null,null,null,null,0,null,0]
[null,null,null,null,null,0,null,0]
[null,null,null,null,null,0,null,0]
[null,null,null,null,null,0,null,0]
[null,null,null,null,null,0,null,0]
[null,null,null,null,null,0,null,0]
[null,null,null,null,null,0,null,0]
[null,null,null,null,null,0,null,0]
[null,null,null,null,null,0,null,0]
[null,null,null,null,null,0,null,0]
[null,null,null,null,null,0,null,0]
[null,null,null,null,null,0,null,0]
[null,null,null,null,null,0,null,0]
[null,null,null,null,null,0,null,0]
[null,null,null,null,null,0,null,0]
[null,null,null,null,null,0,null,0]
[{"$f":"COUNTIF(E277:E299,\"LPD 1.1 Bit als basiseenheid van data\")","v":0},null,null,null,null,0,null,0]
[null,null,null,null,null,0,null,0]
[null,null,null,null,null,0,null,0]
[null,null,null,null,null,0,null,0]
[null,null,null,null,null,0,null,0]
[null,null,null,null,null,0,null,0]
[null,null,null,null,null,0,null,0]
[null,null,null,null,null,0,null,0]
[null,null,null,null,null,0,null,0]
[null,null,null,null,null,0,null,0]
[null,null,null,null,null,0,null,0]
[null,null,null,null,null,0,null,0]
[null,null,null,null,null,0,null,0]
[null,null,null,null,null,0,null,0]
[null,null,null,null,null,0,null,0]
[null,null,null,null,null,0,null,0]
[null,null,null,null,null,0,null,0]
[null,null,null,null,null,0,null,0]
[null,null,null,null,null,0,null,0]
[null,null,null,null,null,0,null,0]
[null,null,null,null,null,0,null,0]
[null,null,null,null,null,0,null,0]
[null,null,null,null,null,0,null,0]
[null,null,null,null,null,0,null,0]
[null,null,null,null,null,0,null,0]
[null,null,null,null,null,0,null,0]
[null,null,null,null,null,0,null,0]
[null,null,null,null,null,0,null,0]
[null,null,null,null,null,0,null,0]
[null,null,null,null,null,0,null,0]
[null,null,null,null,null,0,null,0]
[null,null,null,null,null,0,null,0]
[null,null,null,null,null,0,null,0]
[null,null,null,null,null,0,null,0]
[null,null,null,null,null,0,null,0]
[null,null,null,null,null,0,null,0]
[null,null,null,null,null,0,null,0]
[null,null,null,null,null,0,null,0]
[null,null,null,null,null,0,null,0]
[null,null,null,null,null,0,null,0]
[null,null,null,null,null,0,null,0]
[null,null,null,null,null,0,null,0]
[null,null,null,null,null,0,null,0]
[null,null,null,null,null,0,null,0]
[null,null,null,null,null,0,null,0]
[null,null,null,null,null,0,null,0]
[null,null,null,null,null,0,null,0]
[null,null,null,null,null,0,null,0]
[null,null,null,null,null,0,null,0]
[null,null,null,null,null,0,null,0]
[null,null,null,null,null,0,null,0]
[null,null,null,null,null,0,null,0]
[null,null,null,null,null,0,null,0]
[null,null,null,null,null,0,null,0]
[null,null,null,null,null,0,null,0]
[null,null,null,null,null,0,null,0]
[null,null,null,null,null,0,null,0]
[null,null,null,null,null,0,null,0]
[null,null,null,null,null,0,null,0]
[null,null,null,null,null,0,null,0]
[null,null,null,null,null,0,null,0]
[null,null,null,null,null,0,null,0]
[null,null,null,null,null,0,null,0]
[null,null,null,null,null,0,null,0]
[null,null,null,null,null,0,null,0]
[null,null,null,null,null,0,null,0]
[null,null,null,null,null,0,null,0]
[null,null,null,null,null,0,null,0]
[null,null,null,null,null,0,null,0]
[null,null,null,null,null,0,null,0]
[null,null,null,null,null,0,null,0]
[null,null,null,null,null,0,null,0]
[null,null,null,null,null,0,null,0]
[null,null,null,null,null,0,null,0]
[null,null,null,null,null,0,null,0]
[null,null,null,null,null,0,null,0]
[null,null,null,null,null,0,null,0]
[null,null,null,null,null,0,null,0]
[null,null,null,null,null,0,null,0]
[null,null,null,null,null,0,null,0]
[null,null,null,null,null,0,null,0]
[null,null,null,null,null,0,null,0]
[null,null,null,null,null,0,null,0]
[null,null,null,null,null,0,null,0]
[null,null,null,null,null,0,null,0]
[null,null,null,null,null,0,null,0]
[null,null,null,null,null,0,null,0]
[null,null,null,null,null,0,null,0]
[null,null,null,null,null,0,null,0]
[null,null,null,null,null,0,null,0]
[null,null,null,null,null,0,null,0]
[null,null,null,null,null,0,null,0]
[null,null,null,null,null,0,null,0]
[null,null,null,null,null,0,null,0]
[null,null,null,null,null,0,null,0]
[null,null,null,null,null,0,null,0]
[null,null,null,null,null,0,null,0]
[null,null,null,null,null,0,null,0]
[null,null,null,null,null,0,null,0]
[null,null,null,null,null,0,null,0]
[null,null,null,null,null,0,null,0]
[null,null,null,null,null,0,null,0]
[null,null,null,null,null,0,null,0]
[null,null,null,null,null,0,null,0]
[null,null,null,null,null,0,null,0]
[null,null,null,null,null,0,null,0]
[null,null,null,null,null,0,null,0]
[null,null,null,null,null,0,null,0]
[null,null,null,null,null,0,null,0]
[null,null,null,null,null,0,null,0]
[null,null,null,null,null,0,null,0]
[null,null,null,null,null,0,null,0]
[null,null,null,null,null,0,null,0]
[null,null,null,null,null,0,null,0]
[null,null,null,null,null,0,null,0]
[null,null,null,null,null,0,null,0]
[null,null,null,null,null,0,null,0]
[null,null,null,null,null,0,null,0]
[null,null,null,null,null,0,null,0]
[null,null,null,null,null,0,null,0]
[null,null,null,null,null,0,null,0]
[null,null,null,null,null,0,null,0]
[null,null,null,null,null,0,null,0]
[null,null,null,null,null,0,null,0]
[null,null,null,null,null,0,null,0]
[{"$f":"COUNTIF(E402:E424,\"LPD 1.1 Bit als basiseenheid van data\")","v":0},null,null,null,null,0,null,0]
[null,null,null,null,null,0,null,0]
[null,null,null,null,null,0,null,0]
[null,null,null,null,null,0,null,0]
[null,null,null,null,null,0,null,0]
[null,null,null,null,null,0,null,0]
[null,null,null,null,null,0,null,0]
[null,null,null,null,null,0,null,0]
[null,null,null,null,null,0,null,0]
[null,null,null,null,null,0,null,0]
[null,null,null,null,null,0,null,0]
[null,null,null,null,null,0,null,0]
[null,null,null,null,null,0,null,0]
[null,null,null,null,null,0,null,0]
[null,null,null,null,null,0,null,0]
[null,null,null,null,null,0,null,0]
[null,null,null,null,null,0,null,0]
[null,null,null,null,null,0,null,0]
[null,null,null,null,null,0,null,0]
[null,null,null,null,null,0,null,0]
[null,null,null,null,null,0,null,0]
[null,null,null,null,null,0,null,0]
[null,null,null,null,null,0,null,0]
[null,null,null,null,null,0,null,0]
[null,null,null,null,null,0,null,0]
[null,null,null,null,null,0,null,0]
[null,null,null,null,null,0,null,0]
[null,null,null,null,null,0,null,0]
[null,null,null,null,null,0,null,0]
[null,null,null,null,null,0,null,0]
[null,null,null,null,null,0,null,0]
[null,null,null,null,null,0,null,0]
[null,null,null,null,null,0,null,0]
[null,null,null,null,null,0,null,0]
[null,null,null,null,null,0,null,0]
[null,null,null,null,null,0,null,0]
[null,null,null,null,null,0,null,0]
[null,null,null,null,null,0,null,0]
[null,null,null,null,null,0,null,0]
[null,null,null,null,null,0,null,0]
[null,null,null,null,null,0,null,0]
[null,null,null,null,null,0,null,0]
[null,null,null,null,null,0,null,0]
[null,null,null,null,null,0,null,0]
[null,null,null,null,null,0,null,0]
[null,null,null,null,null,0,null,0]
[null,null,null,null,null,0,null,0]
[null,null,null,null,null,0,null,0]
[null,null,null,null,null,0,null,0]
[null,null,null,null,null,0,null,0]
[null,null,null,null,null,0,null,0]
[null,null,null,null,null,0,null,0]
[null,null,null,null,null,0,null,0]
[null,null,null,null,null,0,null,0]
[null,null,null,null,null,0,null,0]
[null,null,null,null,null,0,null,0]
[null,null,null,null,null,0,null,0]
[null,null,null,null,null,0,null,0]
[null,null,null,null,null,0,null,0]
[null,null,null,null,null,0,null,0]
[null,null,null,null,null,0,null,0]
[null,null,null,null,null,0,null,0]
[null,null,null,null,null,0,null,0]
[null,null,null,null,null,0,null,0]
[null,null,null,null,null,0,null,0]
[null,null,null,null,null,0,null,0]
[null,null,null,null,null,0,null,0]
[null,null,null,null,null,0,null,0]
[null,null,null,null,null,0,null,0]
[null,null,null,null,null,0,null,0]
[null,null,null,null,null,0,null,0]
[null,null,null,null,null,0,null,0]
[null,null,null,null,null,0,null,0]
[null,null,null,null,null,0,null,0]
[null,null,null,null,null,0,null,0]
[null,null,null,null,null,0,null,0]
[null,null,null,null,null,0,null,0]
[null,null,null,null,null,0,null,0]
[null,null,null,null,null,0,null,0]
[null,null,null,null,null,0,null,0]
[null,null,null,null,null,0,null,0]
[null,null,null,null,null,0,null,0]
[null,null,null,null,null,0,null,0]
[null,null,null,null,null,0,null,0]
[null,null,null,null,null,0,null,0]
[null,null,null,null,null,0,null,0]
[null,null,null,null,null,0,null,0]
[null,null,null,null,null,0,null,0]
[null,null,null,null,null,0,null,0]
[null,null,null,null,null,0,null,0]
[null,null,null,null,null,0,null,0]
[null,null,null,null,null,0,null,0]
[null,null,null,null,null,0,null,0]
[null,null,null,null,null,0,null,0]
[null,null,null,null,null,0,null,0]
[null,null,null,null,null,0,null,0]
[null,null,null,null,null,0,null,0]
[null,null,null,null,null,0,null,0]
[null,null,null,null,null,0,null,0]
[null,null,null,null,null,0,null,0]
[null,null,null,null,null,0,null,0]
[null,null,null,null,null,0,null,0]
[null,null,null,null,null,0,null,0]
[null,null,null,null,null,0,null,0]
[null,null,null,null,null,0,null,0]
[null,null,null,null,null,0,null,0]
[null,null,null,null,null,0,null,0]
[null,null,null,null,null,0,null,0]
[null,null,null,null,null,0,null,0]
[null,null,null,null,null,0,null,0]
[null,null,null,null,null,0,null,0]
[null,null,null,null,null,0,null,0]
[null,null,null,null,null,0,null,0]
[null,null,null,null,null,0,null,0]
[null,null,null,null,null,0,null,0]
[null,null,null,null,null,0,null,0]
[null,null,null,null,null,0,null,0]
[null,null,null,null,null,0,null,0]
[null,null,null,null,null,0,null,0]
[null,null,null,null,null,0,null,0]
[null,null,null,null,null,0,null,0]
[null,null,null,null,null,0,null,0]
[null,null,null,null,null,0,null,0]
[null,null,null,null,null,0,null,0]
[null,null,null,null,null,0,null,0]
[null,null,null,null,null,0,null,0]
[null,null,null,null,null,0,null,0]
[null,null,null,null,null,0,null,0]
[null,null,null,null,null,0,null,0]
[null,null,null,null,null,0,null,0]
[null,null,null,null,null,0,null,0]
[null,null,null,null,null,0,null,0]
[null,null,null,null,null,0,null,0]
[{"$f":"COUNTIF(E535:E557,\"LPD 1.1 Bit als basiseenheid van data\")","v":0},null,null,null,null,0,null,0]
[null,null,null,null,null,0,null,0]
[null,null,null,null,null,0,null,0]
[null,null,null,null,null,0,null,0]
[null,null,null,null,null,0,null,0]
[null,null,null,null,null,0,null,0]
[null,null,null,null,null,0,null,0]
[null,null,null,null,null,0,null,0]
[null,null,null,null,null,0,null,0]
[null,null,null,null,null,0,null,0]
[null,null,null,null,null,0,null,0]
[null,null,null,null,null,0,null,0]
[null,null,null,null,null,0,null,0]
[null,null,null,null,null,0,null,0]
[null,null,null,null,null,0,null,0]
[null,null,null,null,null,0,null,0]
[null,null,null,null,null,0,null,0]
[null,null,null,null,null,0,null,0]
[null,null,null,null,null,0,null,0]
[null,null,null,null,null,0,null,0]
[null,null,null,null,null,0,null,0]
[null,null,null,null,null,0,null,0]
[null,null,null,null,null,0,null,0]
[null,null,null,null,null,0,null,0]
[null,null,null,null,null,0,null,0]
[null,null,null,null,null,0,null,0]
[null,null,null,null,null,0,null,0]
[null,null,null,null,null,0,null,0]
[null,null,null,null,null,0,null,0]
[null,null,null,null,null,0,null,0]
[null,null,null,null,null,0,null,0]
[null,null,null,null,null,0,null,0]
[null,null,null,null,null,0,null,0]
[null,null,null,null,null,0,null,0]
[null,null,null,null,null,0,null,0]
[null,null,null,null,null,0,null,0]
[null,null,null,null,null,0,null,0]
[null,null,null,null,null,0,null,0]
[null,null,null,null,null,0,null,0]
[null,null,null,null,null,0,null,0]
[null,null,null,null,null,0,null,0]
[null,null,null,null,null,0,null,0]
[null,null,null,null,null,0,null,0]
[null,null,null,null,null,0,null,0]
[null,null,null,null,null,0,null,0]
[null,null,null,null,null,0,null,0]
[null,null,null,null,null,0,null,0]
[null,null,null,null,null,0,null,0]
[null,null,null,null,null,0,null,0]
[null,null,null,null,null,0,null,0]
[null,null,null,null,null,0,null,0]
[null,null,null,null,null,0,null,0]
[null,null,null,null,null,0,null,0]
[null,null,null,null,null,0,null,0]
[null,null,null,null,null,0,null,0]
[null,null,null,null,null,0,null,0]
[null,null,null,null,null,0,null,0]
[null,null,null,null,null,0,null,0]
[null,null,null,null,null,0,null,0]
[null,null,null,null,null,0,null,0]
[null,null,null,null,null,0,null,0]
[null,null,null,null,null,0,null,0]
[null,null,null,null,null,0,null,0]
[null,null,null,null,null,0,null,0]
[null,null,null,null,null,0,null,0]
[null,null,null,null,null,0,null,0]
[null,null,null,null,null,0,null,0]
[null,null,null,null,null,0,null,0]
[null,null,null,null,null,0,null,0]
[null,null,null,null,null,0,null,0]
[null,null,null,null,null,0,null,0]
[null,null,null,null,null,0,null,0]
[null,null,null,null,null,0,null,0]
[null,null,null,null,null,0,null,0]
[null,null,null,null,null,0,null,0]
[null,null,null,null,null,0,null,0]
[null,null,null,null,null,0,null,0]
[null,null,null,null,null,0,null,0]
[null,null,null,null,null,0,null,0]
[null,null,null,null,null,0,null,0]
[null,null,null,null,null,0,null,0]
[null,null,null,null,null,0,null,0]
[null,null,null,null,null,0,null,0]
[null,null,null,null,null,0,null,0]
[null,null,null,null,null,0,null,0]
[null,null,null,null,null,0,null,0]
[null,null,null,null,null,0,null,0]
[null,null,null,null,null,0,null,0]
[null,null,null,null,null,0,null,0]
[null,null,null,null,null,0,null,0]
[null,null,null,null,null,0,null,0]
[null,null,null,null,null,0,null,0]
[null,null,null,null,null,0,null,0]
[null,null,null,null,null,0,null,0]
[null,null,null,null,null,0,null,0]
[null,null,null,null,null,0,null,0]
[null,null,null,null,null,0,null,0]
[null,null,null,null,null,0,null,0]
[null,null,null,null,null,0,null,0]
[null,null,null,null,null,0,null,0]
[null,null,null,null,null,0,null,0]
[null,null,null,null,null,0,null,0]
[null,null,null,null,null,0,null,0]
[null,null,null,null,null,0,null,0]
[null,null,null,null,null,0,null,0]
[null,null,null,null,null,0,null,0]
[null,null,null,null,null,0,null,0]
[null,null,null,null,null,0,null,0]
[null,null,null,null,null,0,null,0]
[null,null,null,null,null,0,null,0]
[null,null,null,null,null,0,null,0]
[null,null,null,null,null,0,null,0]
[null,null,null,null,null,0,null,0]
[null,null,null,null,null,0,null,0]
[null,null,null,null,null,0,null,0]
[null,null,null,null,null,0,null,0]
[null,null,null,null,null,0,null,0]
[null,null,null,null,null,0,null,0]
[null,null,null,null,null,0,null,0]
[null,null,null,null,null,0,null,0]
[null,null,null,null,null,0,null,0]
[null,null,null,null,null,0,null,0]
[null,null,null,null,null,0,null,0]
[null,null,null,null,null,0,null,0]
[null,null,null,null,null,0,null,0]
[null,null,null,null,null,0,null,0]
[{"$f":"COUNTIF(E661:E683,\"LPD 1.1 Bit als basiseenheid van data\")","v":0},null,null,null,null,0,null,0]
[null,null,null,null,null,0,null,0]
[null,null,null,null,null,0,null,0]
[null,null,null,null,null,0,null,0]
[null,null,null,null,null,0,null,0]
[null,null,null,null,null,0,null,0]
[null,null,null,null,null,0,null,0]
[null,null,null,null,null,0,null,0]
[null,null,null,null,null,0,null,0]
[null,null,null,null,null,0,null,0]
[null,null,null,null,null,0,null,0]
[null,null,null,null,null,0,null,0]
[null,null,null,null,null,0,null,0]
[null,null,null,null,null,0,null,0]
[null,null,null,null,null,0,null,0]
[null,null,null,null,null,0,null,0]
[null,null,null,null,null,0,null,0]
[null,null,null,null,null,0,null,0]
[null,null,null,null,null,0,null,0]
[null,null,null,null,null,0,null,0]
[null,null,null,null,null,0,null,0]
[null,null,null,null,null,0,null,0]
[null,null,null,null,null,0,null,0]
[null,null,null,null,null,0,null,0]
[null,null,null,null,null,0,null,0]
[null,null,null,null,null,0,null,0]
[null,null,null,null,null,0,null,0]
[null,null,null,null,null,0,null,0]
[null,null,null,null,null,0,null,0]
[null,null,null,null,null,0,null,0]
[null,null,null,null,null,0,null,0]
[null,null,null,null,null,0,null,0]
[null,null,null,null,null,0,null,0]
[null,null,null,null,null,0,null,0]
[null,null,null,null,null,0,null,0]
[null,null,null,null,null,0,null,0]
[null,null,null,null,null,0,null,0]
[null,null,null,null,null,0,null,0]
[null,null,null,null,null,0,null,0]
[null,null,null,null,null,0,null,0]
[null,null,null,null,null,0,null,0]
[null,null,null,null,null,0,null,0]
[null,null,null,null,null,0,null,0]
[null,null,null,null,null,0,null,0]
[null,null,null,null,null,0,null,0]
[null,null,null,null,null,0,null,0]
[null,null,null,null,null,0,null,0]
[null,null,null,null,null,0,null,0]
[null,null,null,null,null,0,null,0]
[null,null,null,null,null,0,null,0]
[null,null,null,null,null,0,null,0]
[null,null,null,null,null,0,null,0]
[null,null,null,null,null,0,null,0]
[null,null,null,null,null,0,null,0]
[null,null,null,null,null,0,null,0]
[null,null,null,null,null,0,null,0]
[null,null,null,null,null,0,null,0]
[null,null,null,null,null,0,null,0]
[null,null,null,null,null,0,null,0]
[null,null,null,null,null,0,null,0]
[null,null,null,null,null,0,null,0]
[null,null,null,null,null,0,null,0]
[null,null,null,null,null,0,null,0]
[null,null,null,null,null,0,null,0]
[null,null,null,null,null,0,null,0]
[null,null,null,null,null,0,null,0]
[null,null,null,null,null,0,null,0]
[null,null,null,null,null,0,null,0]
[null,null,null,null,null,0,null,0]
[null,null,null,null,null,0,null,0]
[null,null,null,null,null,0,null,0]
[null,null,null,null,null,0,null,0]
[null,null,null,null,null,0,null,0]
[null,null,null,null,null,0,null,0]
[null,null,null,null,null,0,null,0]
[null,null,null,null,null,0,null,0]
[null,null,null,null,null,0,null,0]
[null,null,null,null,null,0,null,0]
[null,null,null,null,null,0,null,0]
[null,null,null,null,null,0,null,0]
[null,null,null,null,null,0,null,0]
[null,null,null,null,null,0,null,0]
[null,null,null,null,null,0,null,0]
[null,null,null,null,null,0,null,0]
[null,null,null,null,null,0,null,0]
[null,null,null,null,null,0,null,0]
[null,null,null,null,null,0,null,0]
[null,null,null,null,null,0,null,0]
[null,null,null,null,null,0,null,0]
[null,null,null,null,null,0,null,0]
[null,null,null,null,null,0,null,0]
[null,null,null,null,null,0,null,0]
[null,null,null,null,null,0,null,0]
[null,null,null,null,null,0,null,0]
[null,null,null,null,null,0,null,0]
[null,null,null,null,null,0,null,0]
[null,null,null,null,null,0,null,0]
[null,null,null,null,null,0,null,0]
[null,null,null,null,null,0,null,0]
[null,null,null,null,null,0,null,0]
[null,null,null,null,null,0,null,0]
[null,null,null,null,null,0,null,0]
[null,null,null,null,null,0,null,0]
[null,null,null,null,null,0,null,0]
[null,null,null,null,null,0,null,0]
[null,null,null,null,null,0,null,0]
[null,null,null,null,null,0,null,0]
[null,null,null,null,null,0,null,0]
[null,null,null,null,null,0,null,0]
[null,null,null,null,null,0,null,0]
[null,null,null,null,null,0,null,0]
[null,null,null,null,null,0,null,0]
[null,null,null,null,null,0,null,0]
[null,null,null,null,null,0,null,0]
[null,null,null,null,null,0,null,0]
[null,null,null,null,null,0,null,0]
[null,null,null,null,null,0,null,0]
[null,null,null,null,null,0,null,0]
[null,null,null,null,null,0,null,0]
[null,null,null,null,null,0,null,0]
[null,null,null,null,null,0,null,0]
[null,null,null,null,null,0,null,0]
[null,null,null,null,null,0,null,0]
[null,null,null,null,null,0,null,0]
[null,null,null,null,null,0,null,0]
[null,null,null,null,null,0,null,0]
[null,null,null,null,null,0,null,0]
[null,null,null,null,null,0,null,0]
[null,null,null,null,null,0,null,0]
[null,null,null,null,null,0,null,0]
[null,null,null,null,null,0,null,0]
[null,null,null,null,null,0,null,0]
[null,null,null,null,null,0,null,0]
[null,null,null,null,null,0,null,0]
[null,null,null,null,null,0,null,0]
[null,null,null,null,null,0,null,0]
[null,null,null,null,null,0,null,0]
[null,null,null,null,null,0,null,0]
[null,null,null,null,null,0,null,0]
[null,null,null,null,null,0,null,0]
[null,null,null,null,null,0,null,0]
[null,null,null,null,null,0,null,0]
[null,null,null,null,null,0,null,0]
[null,null,null,null,null,0,null,0]
[null,null,null,null,null,0,null,0]
[null,null,null,null,null,0,null,0]
[null,null,null,null,null,0,null,0]
[null,null,null,null,null,0,null,0]
[null,null,null,null,null,0,null,0]
[null,null,null,null,null,0,null,0]
[null,null,null,null,null,0,null,0]
[{"$f":"COUNTIF(E811:E833,\"LPD 1.1 Bit als basiseenheid van data\")","v":0},null,null,null,null,0,null,0]
[null,null,null,null,null,0,null,0]
[null,null,null,null,null,0,null,0]
[null,null,null,null,null,0,null,0]
[null,null,null,null,null,0,null,0]
[null,null,null,null,null,0,null,0]
[null,null,null,null,null,0,null,0]
[null,null,null,null,null,0,null,0]
[null,null,null,null,null,0,null,0]
[null,null,null,null,null,0,null,0]
[null,null,null,null,null,0,null,0]
[null,null,null,null,null,0,null,0]
[null,null,null,null,null,0,null,0]
[null,null,null,null,null,0,null,0]
[null,null,null,null,null,0,null,0]
[null,null,null,null,null,0,null,0]
[null,null,null,null,null,0,null,0]
[null,null,null,null,null,0,null,0]
[null,null,null,null,null,0,null,0]
[null,null,null,null,null,0,null,0]
[null,null,null,null,null,0,null,0]
[null,null,null,null,null,0,null,0]
[null,null,null,null,null,0,null,0]
[null,null,null,null,null,0,null,0]
[null,null,null,null,null,0,null,0]
[null,null,null,null,null,0,null,0]
[null,null,null,null,null,0,null,0]
[null,null,null,null,null,0,null,0]
[null,null,null,null,null,0,null,0]
[null,null,null,null,null,0,null,0]
[null,null,null,null,null,0,null,0]
[null,null,null,null,null,0,null,0]
[null,null,null,null,null,0,null,0]
[null,null,null,null,null,0,null,0]
[null,null,null,null,null,0,null,0]
[null,null,null,null,null,0,null,0]
[null,null,null,null,null,0,null,0]
[null,null,null,null,null,0,null,0]
[null,null,null,null,null,0,null,0]
[null,null,null,null,null,0,null,0]
[null,null,null,null,null,0,null,0]
[null,null,null,null,null,0,null,0]
[null,null,null,null,null,0,null,0]
[null,null,null,null,null,0,null,0]
[null,null,null,null,null,0,null,0]
[null,null,null,null,null,0,null,0]
[null,null,null,null,null,0,null,0]
[null,null,null,null,null,0,null,0]
[null,null,null,null,null,0,null,0]
[null,null,null,null,null,0,null,0]
[null,null,null,null,null,0,null,0]
[null,null,null,null,null,0,null,0]
[null,null,null,null,null,0,null,0]
[null,null,null,null,null,0,null,0]
[null,null,null,null,null,0,null,0]
[null,null,null,null,null,0,null,0]
[null,null,null,null,null,0,null,0]
[null,null,null,null,null,0,null,0]
[null,null,null,null,null,0,null,0]
[null,null,null,null,null,0,null,0]
[null,null,null,null,null,0,null,0]
[null,null,null,null,null,0,null,0]
[null,null,null,null,null,0,null,0]
[null,null,null,null,null,0,null,0]
[null,null,null,null,null,0,null,0]
[null,null,null,null,null,0,null,0]
[null,null,null,null,null,0,null,0]
[null,null,null,null,null,0,null,0]
[null,null,null,null,null,0,null,0]
[null,null,null,null,null,0,null,0]
[null,null,null,null,null,0,null,0]
[null,null,null,null,null,0,null,0]
[null,null,null,null,null,0,null,0]
[null,null,null,null,null,0,null,0]
[null,null,null,null,null,0,null,0]
[null,null,null,null,null,0,null,0]
[null,null,null,null,null,0,null,0]
[null,null,null,null,null,0,null,0]
[null,null,null,null,null,0,null,0]
[null,null,null,null,null,0,null,0]
[null,null,null,null,null,0,null,0]
[null,null,null,null,null,0,null,0]
[null,null,null,null,null,0,null,0]
[null,null,null,null,null,0,null,0]
[null,null,null,null,null,0,null,0]
[null,null,null,null,null,0,null,0]
[null,null,null,null,null,0,null,0]
[null,null,null,null,null,0,null,0]
[null,null,null,null,null,0,null,0]
[null,null,null,null,null,0,null,0]
[null,null,null,null,null,0,null,0]
[null,null,null,null,null,0,null,0]
[null,null,null,null,null,0,null,0]
[null,null,null,null,null,0,null,0]
[null,null,null,null,null,0,null,0]
[null,null,null,null,null,0,null,0]
[null,null,null,null,null,0,null,0]
[null,null,null,null,null,0,null,0]
[null,null,null,null,null,0,null,0]
[null,null,null,null,null,0,null,0]
[null,null,null,null,null,0,null,0]
[null,null,null,null,null,0,null,0]
[null,null,null,null,null,0,null,0]
[null,null,null,null,null,0,null,0]
[null,null,null,null,null,0,null,0]
[null,null,null,null,null,0,null,0]
[null,null,null,null,null,0,null,0]
[null,null,null,null,null,0,null,0]
[null,null,null,null,null,0,null,0]
[null,null,null,null,null,0,null,0]
[null,null,null,null,null,0,null,0]
[null,null,null,null,null,0,null,0]
[null,null,null,null,null,0,null,0]
[null,null,null,null,null,0,null,0]
[null,null,null,null,null,0,null,0]
[null,null,null,null,null,0,null,0]
[null,null,null,null,null,0,null,0]
[null,null,null,null,null,0,null,0]
[null,null,null,null,null,0,null,0]
[null,null,null,null,null,0,null,0]
[null,null,null,null,null,0,null,0]
[null,null,null,null,null,0,null,0]
[null,null,null,null,null,0,null,0]
[null,null,null,null,null,0,null,0]
[null,null,null,null,null,0,null,0]
[null,null,null,null,null,0,null,0]
[null,null,null,null,null,0,null,0]
[null,null,null,null,null,0,null,0]
[null,null,null,null,null,0,null,0]
[null,null,null,null,null,0,null,0]
[null,null,null,null,null,0,null,0]
[null,null,null,null,null,0,null,0]
[null,null,null,null,null,0,null,0]
[null,null,null,null,null,0,null,0]
[null,null,null,null,null,0,null,0]
[null,null,null,null,null,0,null,0]
[null,null,null,null,null,0,null,0]
[null,null,null,null,null,0,null,0]
[null,null,null,null,null,0,null,0]
[null,null,null,null,null,0,null,0]
[null,null,null,null,null,0,null,0]
[null,null,null,null,null,0,null,0]
[null,null,null,null,null,0,null,0]
[null,null,null,null,null,0,null,0]
[null,null,null,null,null,0,null,0]
[null,null,null,null,null,0,null,0]
[{"$f":"COUNTIF(E957:E979,\"LPD 1.1 Bit als basiseenheid van data\")","v":0},null,null,null,null,0,null,0]
[null,null,null,null,null,0,null,0]
[null,null,null,null,null,0,null,0]
[null,null,null,null,null,0,null,0]
[null,null,null,null,null,0,null,0]
[null,null,null,null,null,0,null,0]
[null,null,null,null,null,0,null,0]
[null,null,null,null,null,0,null,0]
[null,null,null,null,null,0,null,0]
[null,null,null,null,null,0,null,0]
[null,null,null,null,null,0,null,0]
[null,null,null,null,null,0,null,0]
[null,null,null,null,null,0,null,0]
[null,null,null,null,null,0,null,0]
[null,null,null,null,null,0,null,0]
[null,null,null,null,null,0,null,0]
[null,null,null,null,null,0,null,0]
[null,null,null,null,null,0,null,0]
[null,null,null,null,null,0,null,0]
[null,null,null,null,null,0,null,0]
[null,null,null,null,null,0,null,0]
[null,null,null,null,null,0,null,0]
[null,null,null,null,null,0,null,0]
[null,null,null,null,null,0,null,0]
[null,null,null,null,null,0,null,0]
[null,null,null,null,null,0,null,0]
[null,null,null,null,null,0,null,0]
[null,null,null,null,null,0,null,0]
[null,null,null,null,null,0,null,0]
[null,null,null,null,null,0,null,0]
[null,null,null,null,null,0,null,0]
[null,null,null,null,null,0,null,0]
[null,null,null,null,null,0,null,0]
[null,null,null,null,null,0,null,0]
[null,null,null,null,null,0,null,0]
[null,null,null,null,null,0,null,0]
[null,null,null,null,null,0,null,0]
[null,null,null,null,null,0,null,0]
[null,null,null,null,null,0,null,0]
[null,null,null,null,null,0,null,0]
[null,null,null,null,null,0,null,0]
[null,null,null,null,null,0,null,0]
[null,null,null,null,null,0,null,0]
[null,null,null,null,null,0,null,0]
[null,null,null,null,null,0,null,0]
[]
[]
[]
[]
[]
[]
[]
[]
[]
[]
[]
[]
[]
[]
[]
[]
[]
[]
[]
[]
[]
[]
[]
[]
[]
[]
[]
[]
[]
[]
[]
[]
[]
[]
[]
[]
[]
[]
[]
[]
[]
[{"$f":"COUNTIF(E1044:E1066,\"LPD 1.1 Bit als basiseenheid van data\")","v":0}]